bitfinex/quotes_ETHUSD_20250422
["timestamp","ask_amount","ask_price","bid_price","bid_amount"]
[1745345312484,5.89377,1702.7,1702.3,3.44083206]
[1745345312803,5.89377,1702.7,1702.3,9.31519797]
[1745345313010,5.89377,1702.7,1702.2,18.34433063]
[1745345313181,5.89377,1702.7,1702.3,5.87437181]
[1745345313534,5.89377,1702.7,1702.2,12.46980647]
[1745345313535,5.89377,1702.7,1702.2,11.67350647]
[1745345313739,5.89377,1702.7,1702.3,5.87428492]
[1745345313935,5.89377,1702.7,1702.2,17.54802529]
[1745345314241,5.89377,1702.7,1702.2,11.67350647]
[1745345314242,5.2852,1702.6,1702.2,11.67350647]
[1745345314443,5.2852,1702.6,1702.3,5.87428524]
[1745345314645,5.2852,1702.6,1702.2,11.67350647]
[1745345314814,0.8005,1702.5,1702.1,8.87508685]
[1745345315005,5.2852,1702.4,1702.1,8.87508685]
[1745345315412,5.2852,1702.4,1702.1,0.43383263]
[1745345315706,5.2852,1702.4,1702.0,5.799]
[1745345315905,5.2852,1702.4,1702.3,5.87440521]
[1745345318909,5.2852,1702.4,1702.3,6.67070521]
[1745345319342,5.2852,1702.6,1702.2,0.05873809]
[1745345319546,0.8005,1702.3,1702.0,5.87521973]
[1745345319706,0.8005,1702.3,1701.9,5.8756469]
[1745345320212,0.8005,1702.3,1701.8,5.87594314]
[1745345320415,5.2852,1702.2,1701.6,25.69255306]
[1745345320642,5.2852,1702.2,1701.7,5.87641989]
[1745345321125,11.15996458,1702.2,1701.6,25.69255306]
[1745345321326,5.2852,1702.2,1701.7,5.87644827]
[1745345321514,0.52852,1702.1,1701.7,5.87644827]
[1745345321710,5.2852,1702.0,1701.6,19.81600399]
[1745345322044,0.8013,1701.9,1701.6,0.44300399]
[1745345322241,0.8013,1701.9,1701.5,18.24121346]
[1745345322434,5.2852,1702.0,1701.6,3.0]
[1745345322625,5.2852,1702.0,1701.8,5.87613115]
[1745345322821,6.0865,1701.9,1700.9,1.87594501]
[1745345323015,6.0865,1701.9,1701.2,5.87798261]
[1745345323016,5.2852,1701.8,1701.2,5.87798261]
[1745345323216,6.67825667,1701.6,1701.0,5.87869871]
[1745345323416,6.67830388,1701.6,1700.9,6.8021594]
[1745345323613,0.8013,1701.4,1700.9,0.43622713]
[1745345323821,5.2852,1701.3,1700.9,8.87913354]
[1745345324113,5.2852,1701.3,1700.9,3.0]
[1745345324612,5.2852,1701.3,1700.8,12.15798465]
[1745345324841,5.2852,1701.3,1700.9,3.0]
[1745345325035,5.89385,1701.3,1700.9,3.0]
[1745345325312,5.89385,1701.3,1700.8,12.1579399]
[1745345325554,5.89385,1701.3,1700.9,5.87919324]
[1745345325762,5.89385,1701.3,1700.9,5.93797935]
[1745345326054,5.89385,1701.3,1700.9,5.87919324]
[1745345326252,0.589385,1701.2,1700.9,3.0]
[1745345326643,5.2852,1701.1,1700.8,3.399242]
[1745345327152,5.2852,1701.1,1700.8,0.399242]
[1745345327323,6.0865,1701.0,1700.8,0.399242]
[1745345327655,11.1644404,1700.9,1700.8,0.399242]
[1745345327873,7.06968318,1700.9,1700.8,0.399242]
[1745345328013,12.94892358,1700.9,1700.8,0.399242]
[1745345328333,7.87098318,1700.9,1700.8,0.399242]
[1745345328657,6.0865,1700.9,1700.8,0.399242]
[1745345329518,5.2852,1700.9,1700.8,0.399242]
[1745345331463,12.5157404,1700.9,1700.8,0.399242]
[1745345332148,15.5157404,1700.9,1700.8,0.399242]
[1745345333321,22.23424593,1700.9,1700.8,0.1113449]
[1745345333521,25.0455754,1700.9,1700.8,0.1113449]
[1745345334823,25.0455754,1700.9,1700.8,1e-08]
[1745345336144,25.49691452,1700.9,1700.8,1e-08]
[1745345337462,0.7981,1700.2,1699.8,3.0]
[1745345337671,7.34778134,1700.2,1699.8,3.0]
[1745345337968,6.08329999,1700.2,1699.8,3.0]
[1745345338159,6.08329999,1700.2,1699.7,0.8156]
[1745345338321,5.88212533,1700.1,1699.5,12.57477911]
[1745345338726,5.88245989,1700.0,1699.5,0.807]
[1745345339065,0.7981,1699.9,1699.4,3.0]
[1745345339225,6.68098399,1699.9,1699.4,3.0]
[1745345339431,0.7981,1699.9,1699.5,5.88397645]
[1745345340156,0.7981,1699.9,1699.5,5.88387313]
[1745345340464,0.7981,1699.9,1699.3,16.01837983]
[1745345340465,6.68083709,1699.9,1699.3,16.01837983]
[1745345340631,0.7981,1699.9,1699.3,3.807]
[1745345340835,0.7981,1699.9,1699.4,5.88441039]
[1745345341150,7.9921431,1699.9,1699.3,9.69156952]
[1745345341356,7.9921431,1699.9,1699.3,9.69155118]
[1745345341671,7.9921431,1699.9,1699.3,3.807]
[1745345341967,7.99223556,1699.9,1699.3,9.69159843]
[1745345342367,7.99223556,1699.9,1699.3,9.69154675]
[1745345342571,5.695,1700.1,1699.3,5.87412825]
[1745345342866,5.28519999,1700.2,1699.8,5.88294058]
[1745345343163,6.08329999,1700.5,1699.9,5.8825856]
[1745345343330,11.96411299,1700.5,1699.9,5.8825856]
[1745345343526,6.08329999,1700.5,1700.1,5.88200283]
[1745345343731,6.08329999,1700.5,1700.0,5.88232207]
[1745345344170,6.08329999,1700.5,1700.0,5.88214555]
[1745345344729,6.08329999,1700.5,1699.9,5.88248448]
[1745345344979,13.74841216,1700.5,1699.9,7.40402308]
[1745345345264,13.74841216,1700.5,1699.8,9.33290153]
[1745345345265,5.8814297,1700.3,1699.8,3.0]
[1745345345635,12.31251419,1700.4,1699.8,8.88302879]
[1745345345835,12.31253659,1700.4,1699.8,8.88302879]
[1745345346082,6.43123883,1700.4,1699.8,8.88302879]
[1745345346232,13.74851826,1700.5,1699.9,5.88269508]
[1745345346434,5.28519999,1700.4,1699.9,0.88826951]
[1745345346767,5.28519999,1700.4,1700.2,0.807]
[1745345346971,5.28519999,1700.4,1700.1,8.88197101]
[1745345347534,5.28519999,1700.4,1700.1,3.0]
[1745345347751,5.28519999,1700.4,1700.0,0.807]
[1745345347945,5.28519999,1700.4,1700.0,6.68934725]
[1745345348937,5.28519999,1700.4,1700.0,0.807]
[1745345349282,5.28519999,1700.4,1700.0,6.68934604]
[1745345349434,5.28519999,1700.4,1700.0,6.68917304]
[1745345349871,5.28519999,1700.4,1700.0,12.57135479]
[1745345350169,5.28519999,1700.4,1700.1,5.88189215]
[1745345350576,5.28519999,1700.4,1700.0,2.93333548]
[1745345350877,5.28519999,1700.4,1700.1,11.7636439]
[1745345351281,5.28519999,1700.4,1700.3,5.88131506]
[1745345351490,5.28519999,1700.6,1700.5,5.88062334]
[1745345351692,5.28519999,1700.6,1700.4,12.57801559]
[1745345352378,5.28519999,1700.9,1700.4,3.8165]
[1745345352707,5.28519999,1700.9,1700.7,8.87977739]
[1745345352995,5.28519999,1700.9,1700.4,1.25085]
[1745345352996,6.11539999,1700.9,1700.4,3.10753772]
[1745345353350,6.11539999,1700.9,1700.5,5.88061433]
[1745345353778,6.11539999,1700.9,1700.4,5.98827327]
[1745345354817,6.11539999,1700.9,1700.5,8.88047949]
[1745345355149,6.11539999,1700.9,1700.5,3.0]
[1745345355350,5.87973285,1700.8,1700.4,0.10753772]
[1745345355571,5.28519999,1700.7,1700.4,0.10753772]
[1745345355891,5.28519999,1700.6,1700.2,3.0]
[1745345356186,5.28519999,1700.6,1700.3,5.8812666]
[1745345356653,5.28519999,1700.6,1700.2,8.88155727]
[1745345356855,5.28519999,1700.6,1700.3,5.88130013]
[1745345357388,5.28519999,1700.6,1700.3,7.3573458]
[1745345357548,5.28519999,1700.6,1700.5,9.69032334]
[1745345358499,5.28519999,1700.6,1700.5,3.8097]
[1745345358711,5.28519999,1700.6,1700.5,0.8097]
[1745345359005,5.28519999,1700.6,1700.5,6.69032334]
[1745345359206,5.28519999,1700.6,1700.4,8.88096733]
[1745345359511,5.28519999,1700.6,1700.5,9.69032334]
[1745345361006,0.8302,1700.9,1700.5,9.69032334]
[1745345361007,5.28519999,1700.8,1700.5,9.69032334]
[1745345363213,5.28519999,1700.8,1700.5,9.69008723]
[1745345363412,0.8302,1700.9,1700.6,12.6574788]
[1745345363615,5.28519999,1701.0,1700.7,5.87971508]
[1745345363821,5.28519999,1701.0,1700.8,5.87944699]
[1745345363983,5.28519999,1701.0,1700.8,5.93821578]
[1745345364182,5.28519999,1701.0,1700.8,5.87940616]
[1745345364482,5.28519999,1701.0,1700.5,15.38111709]
[1745345364674,5.28519999,1701.0,1700.6,3.0]
[1745345364879,6.98946975,1701.0,1700.6,3.0]
[1745345365114,6.98946975,1701.0,1700.5,3.8097]
[1745345365315,0.785,1700.9,1700.5,3.0]
[1745345365515,0.785,1700.9,1700.5,8.88059161]
[1745345365716,6.6644314,1700.9,1700.3,17.45329418]
[1745345366015,5.28519999,1700.8,1700.3,11.57208598]
[1745345366227,5.88009852,1700.7,1700.2,0.8097]
[1745345366523,11.16493378,1700.8,1700.2,5.88163633]
[1745345366686,6.66517536,1700.7,1700.0,7.13218541]
[1745345366886,12.54543919,1700.7,1700.1,5.88200388]
[1745345367131,0.785,1700.5,1699.5,0.8097]
[1745345367300,5.28519999,1700.4,1699.9,5.88257814]
[1745345368023,11.16629548,1700.4,1699.8,5.88279956]
[1745345368393,5.28519999,1700.4,1699.9,5.88269786]
[1745345369012,5.28519999,1700.4,1699.9,0.8097]
[1745345369198,5.28519999,1700.4,1700.0,5.88235294]
[1745345369406,5.28519999,1700.4,1700.0,5.88217579]
[1745345370525,5.28519999,1700.4,1699.9,6.6922342]
[1745345370526,5.28519999,1700.4,1699.9,6.69218465]
[1745345370697,5.89221999,1700.4,1699.9,6.69218465]
[1745345371117,5.89221999,1700.4,1700.0,5.88234644]
[1745345372696,5.89221999,1700.4,1700.0,5.88213937]
[1745345373732,5.28519999,1700.4,1700.1,7.52820553]
[1745345373919,5.28519999,1700.4,1700.3,5.88131506]
[1745345374121,5.28519999,1700.6,1700.5,5.88062334]
[1745345374436,0.785,1700.9,1700.5,6.69032334]
[1745345374609,6.07019999,1700.9,1700.5,6.69032334]
[1745345375141,6.07019999,1700.9,1700.5,5.06680957]
[1745345375303,5.28519999,1700.9,1700.8,5.87958607]
[1745345375697,5.28519999,1700.9,1700.7,11.7594961]
[1745345375933,5.28519999,1700.9,1700.6,3.0]
[1745345377134,0.8049,1700.8,1700.3,3.0]
[1745345377367,1.33342,1700.8,1700.2,3.0]
[1745345377634,5.28519999,1700.9,1700.8,5.87958607]
[1745345377847,5.28519999,1700.9,1700.6,5.602]
[1745345378001,5.28519999,1700.9,1700.7,3.0]
[1745345378200,5.28519999,1700.9,1700.6,5.602]
[1745345380124,5.28519999,1700.9,1700.6,11.4820317]
[1745345380324,5.28519999,1700.9,1700.8,5.87958607]
[1745345381219,5.28519999,1700.9,1700.7,12.59823724]
[1745345381452,5.28519999,1700.9,1700.8,5.87958607]
[1745345383241,0.8049,1701.2,1701.0,5.87871964]
[1745345383555,5.28519999,1701.3,1701.0,6.6916657]
[1745345383839,5.28519999,1701.3,1701.0,6.69162398]
[1745345384019,5.28519999,1701.3,1701.0,6.69158905]
[1745345384215,5.28519999,1701.3,1701.1,5.87852238]
[1745345384939,5.28519999,1701.3,1701.2,5.87820362]
[1745345385645,5.28519999,1701.7,1701.4,5.87724166]
[1745345386019,11.1617247,1701.7,1701.0,9.69157966]
[1745345386220,5.877274,1701.5,1701.0,3.0]
[1745345386418,0.8118,1701.4,1700.9,11.75803235]
[1745345386619,0.8118,1701.4,1700.9,11.75802296]
[1745345386823,0.8118,1701.4,1701.0,5.87878063]
[1745345387365,1.48069734,1701.4,1701.0,5.87878063]
[1745345387653,0.8118,1701.4,1701.2,5.87799283]
[1745345388143,0.8118,1701.4,1701.0,14.75741206]
[1745345388449,0.8118,1701.4,1701.1,5.87845764]
[1745345389176,0.8118,1701.4,1701.2,5.87815658]
[1745345389375,0.8118,1701.7,1701.2,5.87815658]
[1745345389679,6.68840007,1701.7,1701.1,11.75677961]
[1745345389882,0.66884001,1701.6,1701.2,5.87816967]
[1745345390074,0.8118,1701.7,1701.2,5.87816967]
[1745345390982,6.68830273,1701.7,1701.2,5.87816967]
[1745345392090,6.68830273,1701.7,1701.1,11.75672572]
[1745345392439,6.68830273,1701.7,1701.1,5.87832197]
[1745345392578,6.68830273,1701.7,1701.1,11.75663043]
[1745345392779,0.66883027,1701.6,1701.2,5.87809822]
[1745345392965,0.66883027,1701.6,1701.2,5.87799994]
[1745345393276,0.8118,1701.7,1701.1,5.87841249]
[1745345393499,6.68838241,1701.7,1701.1,11.75668558]
[1745345393709,6.68831869,1701.7,1701.2,5.87810997]
[1745345394057,6.68831869,1701.7,1701.1,5.87833028]
[1745345394058,6.6887178,1701.6,1701.0,14.75733837]
[1745345394258,0.66887178,1701.5,1701.0,14.75732676]
[1745345394452,0.66887178,1701.5,1701.1,5.87820914]
[1745345394654,0.8118,1701.6,1701.1,5.87820914]
[1745345394897,6.68863879,1701.6,1701.1,5.87820914]
[1745345395107,0.8118,1701.6,1701.1,5.87820914]
[1745345396881,0.8118,1701.6,1701.1,11.75652824]
[1745345397089,0.8118,1701.6,1701.2,5.87816172]
[1745345397786,1.48063456,1701.6,1701.1,5.87820914]
[1745345398489,1.48063456,1701.6,1701.1,11.75656609]
[1745345398693,1.48063456,1701.6,1701.1,5.87820914]
[1745345399161,1.48063456,1701.6,1701.1,11.75652466]
[1745345399367,1.48063456,1701.6,1701.1,5.87820914]
[1745345399890,7.35750732,1701.6,1701.1,5.87820914]
[1745345400053,0.73575073,1701.5,1701.1,5.87820914]
[1745345400256,5.87718114,1701.5,1701.0,8.87868226]
[1745345400454,5.87718114,1701.5,1701.0,8.6]
[1745345400689,0.7679,1701.4,1701.0,14.47866757]
[1745345401259,6.64558535,1701.4,1700.8,11.47945387]
[1745345401459,0.7679,1701.2,1700.7,11.7677888]
[1745345401804,6.64617205,1701.2,1700.7,11.7677888]
[1745345402092,12.52462661,1701.2,1700.6,5.88013259]
[1745345402268,6.64612761,1701.2,1700.6,5.88025639]
[1745345402670,6.64623544,1701.2,1700.6,11.76017738]
[1745345402864,0.66462354,1701.1,1700.7,5.87986551]
[1745345403197,5.87871527,1701.1,1700.5,17.36848461]
[1745345403362,0.7679,1701.0,1700.6,5.88023689]
[1745345404269,0.7679,1701.0,1700.6,3.0]
[1745345404472,0.7679,1701.0,1700.5,11.76864187]
[1745345404773,0.7679,1701.0,1700.6,5.88011034]
[1745345404964,0.7679,1701.0,1700.5,11.76846407]
[1745345405291,0.7679,1701.0,1700.6,5.88023163]
[1745345405595,0.7679,1701.0,1700.5,11.76846407]
[1745345405802,1.43254778,1701.0,1700.5,17.64887619]
[1745345405987,1.43254778,1701.0,1700.5,11.76843994]
[1745345406364,1.43254778,1701.0,1700.5,17.64884946]
[1745345406603,1.43254778,1701.0,1700.3,0.10754404]
[1745345406604,5.88015228,1700.7,1700.3,0.10754404]
[1745345406767,0.7679,1700.5,1700.0,11.44118095]
[1745345406960,0.7679,1700.5,1700.0,18.46747738]
[1745345407160,0.7679,1700.5,1700.0,12.58529643]
[1745345407462,0.7679,1700.5,1700.1,5.88199109]
[1745345408055,0.7679,1700.5,1700.0,6.7031181]
[1745345408261,0.7679,1700.4,1700.0,5.559]
[1745345408488,0.7679,1700.4,1700.0,3.0]
[1745345408997,0.7679,1700.4,1700.0,8.88233038]
[1745345409198,0.7679,1700.4,1700.0,3.0]
[1745345409403,5.88154091,1700.3,1699.7,5.88325559]
[1745345409710,0.7679,1700.1,1699.9,5.88244034]
[1745345409912,0.7679,1700.3,1699.9,5.88244034]
[1745345410775,0.7679,1700.3,1699.9,11.7648903]
[1745345410976,0.7679,1700.3,1699.9,5.88244034]
[1745345411175,0.7679,1700.3,1699.9,11.76489491]
[1745345411372,0.7679,1700.3,1699.9,12.9413844]
[1745345411599,0.7679,1700.3,1700.1,5.88198833]
[1745345411799,0.7679,1700.3,1699.9,7.06453495]
[1745345412001,0.7659,1700.5,1700.1,5.88178044]
[1745345412169,0.7659,1700.5,1700.2,5.88146048]
[1745345412685,0.7659,1700.5,1700.1,11.77003389]
[1745345413386,0.7659,1700.5,1700.1,5.88198843]
[1745345413589,6.64678633,1700.5,1699.9,5.88249294]
[1745345413782,7.31146496,1700.5,1699.9,5.88249294]
[1745345413977,7.31146496,1700.5,1700.0,5.88804546]
[1745345413978,1.43057863,1700.5,1700.0,5.88804546]
[1745345414302,0.7659,1700.5,1700.1,8.88200694]
[1745345414511,0.7659,1700.8,1700.6,5.88007861]
[1745345414669,0.7659,1700.8,1700.3,5.88131506]
[1745345414868,0.7659,1700.8,1700.3,3.0]
[1745345415179,0.7659,1700.8,1700.5,5.88054136]
[1745345415375,0.7659,1700.8,1700.4,5.88804546]
[1745345415588,0.7659,1700.8,1700.5,5.88048171]
[1745345415770,0.7659,1700.8,1700.5,5.88044955]
[1745345416281,0.7659,1701.2,1700.6,5.8801168]
[1745345416482,6.64430436,1701.2,1700.6,5.8801168]
[1745345416696,0.66443044,1701.1,1700.6,5.8801168]
[1745345416884,6.5430622,1701.1,1700.6,5.8801168]
[1745345417382,0.7659,1701.0,1700.5,3.0]
[1745345417607,6.64498176,1701.0,1700.5,3.0]
[1745345417805,6.64498176,1701.0,1700.5,8.8805934]
[1745345418103,2.08471633,1701.0,1700.5,8.8805934]
[1745345418412,7.96377524,1701.0,1700.5,3.0]
[1745345418708,7.96377524,1701.0,1700.5,8.88061049]
[1745345419693,6.64568501,1700.8,1700.3,3.0]
[1745345419991,0.7659,1700.8,1700.3,14.76227452]
[1745345420378,0.7659,1700.8,1700.3,8.88108725]
[1745345420681,1.43042814,1700.8,1700.3,8.88108725]
[1745345421309,1.43042814,1700.8,1700.4,5.88094534]
[1745345421507,0.7659,1700.8,1700.4,5.88094534]
[1745345422883,0.7659,1700.8,1700.5,5.88060134]
[1745345423809,0.7659,1700.8,1700.5,5.88048246]
[1745345424177,0.7659,1700.8,1700.5,11.76089055]
[1745345424377,0.7659,1701.2,1700.7,5.87993179]
[1745345424620,0.7659,1701.2,1700.8,5.87944932]
[1745345424776,0.7659,1701.2,1700.8,3.0]
[1745345424981,0.7659,1701.2,1700.9,5.88804546]
[1745345425412,0.7659,1701.2,1700.9,5.87907307]
[1745345426305,0.7659,1701.2,1700.8,9.69513913]
[1745345426500,6.64423073,1701.2,1700.6,11.76818148]
[1745345426700,6.68094631,1701.0,1700.5,5.56]
[1745345427132,5.87970902,1700.8,1700.3,5.88804546]
[1745345427336,0.8019,1700.7,1700.2,23.98800967]
[1745345427527,0.8019,1700.7,1700.2,5.56]
[1745345427838,6.68200278,1700.7,1700.2,5.56]
[1745345428041,0.66820028,1700.6,1700.2,5.56]
[1745345428510,6.68190625,1700.7,1700.2,5.56]
[1745345430655,0.8019,1700.7,1700.3,5.88117187]
[1745345430809,0.8019,1700.7,1700.4,5.88084142]
[1745345431005,0.8019,1700.7,1700.5,5.88804546]
[1745345431220,0.8019,1700.7,1700.5,11.76856821]
[1745345431448,0.8019,1701.0,1700.6,7.05692093]
[1745345431744,0.8019,1701.0,1700.6,5.88006411]
[1745345432313,0.8019,1701.0,1700.5,11.76849033]
[1745345433011,6.68102133,1701.0,1700.5,5.88804546]
[1745345433224,0.8019,1700.9,1700.5,5.88804546]
[1745345433452,0.8019,1700.9,1700.3,14.76917578]
[1745345433453,6.68117394,1700.9,1700.3,14.76917578]
[1745345433603,0.66811739,1700.8,1700.3,8.88804546]
[1745345433803,0.8019,1700.7,1700.3,5.88804546]
[1745345434434,6.68204709,1700.7,1700.1,18.10693463]
[1745345434753,0.8019,1700.7,1700.2,5.88155795]
[1745345436109,6.68207991,1700.7,1700.1,18.10691116]
[1745345436310,5.88087989,1700.5,1699.9,0.7771]
[1745345436641,6.68187788,1700.7,1700.0,11.7702245]
[1745345436642,0.8019,1700.3,1700.0,11.7702245]
[1745345437146,0.8019,1700.3,1700.0,5.88804546]
[1745345438107,5.88185182,1700.2,1699.7,5.88804546]
[1745345438308,6.68425744,1700.0,1699.5,5.88804546]
[1745345438508,7.40768318,1700.0,1699.5,5.88804546]
[1745345438749,13.29030921,1700.0,1699.4,5.88440402]
[1745345438914,5.88319092,1699.8,1699.4,5.88804546]
[1745345439109,0.8019,1699.7,1699.2,11.4448122]
[1745345439316,6.68545111,1699.7,1699.1,0.399242]
[1745345439638,6.68535235,1699.7,1699.1,6.28448792]
[1745345439837,0.8019,1699.7,1699.2,6.60476886]
[1745345440144,0.8019,1699.7,1699.2,12.48968892]
[1745345440350,0.8019,1699.7,1699.1,6.28454968]
[1745345440351,6.68530542,1699.7,1699.1,6.28454968]
[1745345440724,0.8019,1699.7,1699.2,8.97632007]
[1745345440921,0.8019,1699.7,1699.3,5.88445495]
[1745345441124,0.8019,1699.7,1699.2,15.67482295]
[1745345441323,0.8019,1699.7,1699.3,7.54380237]
[1745345441517,0.8019,1699.7,1699.3,13.42854092]
[1745345441752,0.8019,1699.7,1699.4,5.8843059]
[1745345441952,0.8019,1699.7,1699.3,13.42835357]
[1745345442154,0.8019,1699.7,1699.4,5.88440084]
[1745345442516,0.8019,1699.7,1699.4,3.0]
[1745345442957,0.8019,1699.7,1699.3,5.97632007]
[1745345443111,7.35380408,1699.7,1699.3,5.97632007]
[1745345443711,7.35380408,1699.7,1699.1,6.28448506]
[1745345443712,5.88458558,1699.4,1699.1,0.399242]
[1745345443916,0.7641,1699.3,1699.1,0.399242]
[1745345444126,6.64913373,1699.3,1699.1,0.399242]
[1745345444326,0.7641,1699.3,1699.1,0.399242]
[1745345445258,0.7641,1699.5,1699.1,0.399242]
[1745345445840,7.31318071,1699.5,1699.1,0.399242]
[1745345446156,6.64922241,1699.2,1699.1,0.399242]
[1745345448024,0.7641,1699.2,1699.1,0.399242]
[1745345448232,6.64922241,1699.2,1699.1,0.399242]
[1745345448861,13.29922241,1699.2,1699.1,0.399242]
[1745345449050,15.81527051,1699.2,1699.1,0.399242]
[1745345449840,19.24641192,1699.2,1699.1,0.399242]
[1745345450629,0.7641,1698.6,1698.1,5.563]
[1745345450953,5.700758,1698.8,1698.3,0.8136]
[1745345451115,0.7641,1698.7,1698.3,9.70171436]
[1745345451447,12.3517316,1698.7,1698.1,7.12396729]
[1745345451816,6.65142452,1698.6,1697.9,6.70299141]
[1745345452139,6.65142452,1698.6,1698.0,5.88909087]
[1745345452456,6.65142452,1698.6,1698.1,3.0]
[1745345452950,0.7641,1698.6,1698.0,3.0]
[1745345453134,0.7641,1698.6,1698.1,5.88877784]
[1745345453339,5.700758,1698.7,1698.3,5.88804922]
[1745345453539,5.700758,1698.7,1698.4,3.0]
[1745345453924,5.700758,1698.7,1698.4,8.88778003]
[1745345454132,5.700758,1698.7,1698.4,3.0]
[1745345454332,5.700758,1698.7,1698.2,4.40247778]
[1745345454660,5.700758,1698.7,1698.4,3.0]
[1745345454829,5.700758,1698.7,1698.3,0.44024778]
[1745345455030,5.700758,1698.7,1698.4,3.0]
[1745345455245,5.700758,1698.7,1698.3,3.0]
[1745345455754,11.58763149,1698.7,1698.1,11.86502473]
[1745345456059,5.88772644,1698.5,1698.0,0.791]
[1745345456265,5.88772644,1698.5,1697.9,5.8894583]
[1745345456421,12.40401431,1698.6,1697.8,18.22214354]
[1745345456422,0.8159,1698.3,1698.0,3.0]
[1745345456625,5.88879826,1698.2,1697.6,5.89047074]
[1745345456959,0.8159,1698.0,1697.5,5.89084646]
[1745345457143,0.8159,1698.0,1697.6,6.47958106]
[1745345457350,0.8159,1698.0,1697.7,3.0]
[1745345457726,0.8159,1698.0,1697.6,0.58908465]
[1745345457921,5.700758,1697.9,1697.6,0.58908465]
[1745345458118,11.59053099,1697.9,1697.4,0.399242]
[1745345458357,5.700758,1697.9,1697.8,5.88997526]
[1745345458539,5.700758,1698.3,1697.9,8.88961076]
[1745345458737,5.700758,1698.3,1697.9,3.0]
[1745345458934,5.700758,1698.3,1697.9,3.3]
[1745345459133,11.58901419,1698.3,1697.7,3.0]
[1745345459459,5.700758,1698.3,1697.9,3.0]
[1745345460472,6.516658,1698.4,1698.1,5.88865959]
[1745345460669,5.700758,1698.6,1698.3,3.0]
[1745345460976,5.700758,1698.8,1698.4,12.95502349]
[1745345461137,5.700758,1698.8,1698.4,1.091]
[1745345461466,5.700758,1698.8,1698.5,5.88734502]
[1745345461763,5.700758,1698.8,1698.6,3.0]
[1745345461962,0.8159,1699.1,1698.6,8.88701716]
[1745345461963,5.700758,1699.0,1698.6,8.88701716]
[1745345462166,0.8159,1699.3,1698.8,11.86268792]
[1745345462365,0.8159,1699.3,1698.9,3.0]
[1745345462660,0.8159,1699.5,1698.9,9.67698767]
[1745345462866,0.8159,1699.5,1699.0,11.86194673]
[1745345463065,6.69837278,1700.0,1699.4,5.88439072]
[1745345463282,0.8159,1700.0,1699.6,5.97632007]
[1745345463975,0.8159,1700.0,1699.5,0.58843907]
[1745345464154,5.88284378,1699.9,1699.4,15.33332007]
[1745345464555,5.88377035,1699.6,1699.1,6.87494007]
[1745345464759,6.9319,1700.0,1699.3,5.97632007]
[1745345464934,5.88284343,1699.9,1699.3,5.97632007]
[1745345465135,5.88324411,1699.8,1699.3,5.97632007]
[1745345465365,6.47195538,1699.7,1699.3,5.97632007]
[1745345465672,6.47193269,1699.7,1699.1,9.87494007]
[1745345465875,6.47193269,1699.7,1699.1,15.76035546]
[1745345467064,6.69998612,1699.5,1699.1,0.10762]
[1745345467269,6.70017964,1699.5,1699.1,0.10762]
[1745345467471,7.95859642,1699.5,1699.1,0.10762]
[1745345467669,5.88446285,1699.4,1699.0,3.0]
[1745345468775,5.88446285,1699.4,1698.9,5.97632007]
[1745345469076,7.95853625,1699.5,1698.9,5.97632007]
[1745345469274,2.07431678,1699.5,1699.0,5.88581413]
[1745345469568,7.95855344,1699.5,1698.9,11.86232679]
[1745345469776,0.79585534,1699.4,1698.9,11.86232679]
[1745345470568,6.68036752,1699.4,1698.9,5.97632007]
[1745345470771,0.79585534,1699.4,1698.9,11.86234726]
[1745345471374,6.68040101,1699.4,1698.9,5.97632007]
[1745345471680,5.700758,1699.3,1698.9,11.86230679]
[1745345471843,5.700758,1699.3,1698.9,17.74827189]
[1745345472045,5.700758,1699.3,1699.0,11.77132307]
[1745345472245,5.700758,1699.3,1699.0,5.88565857]
[1745345473296,5.700758,1699.3,1699.0,5.88565403]
[1745345473589,5.700758,1699.3,1699.0,5.88560654]
[1745345473788,5.700758,1699.4,1699.2,5.88488612]
[1745345474078,5.700758,1699.4,1699.1,11.86159302]
[1745345474279,5.700758,1699.4,1699.1,17.74689742]
[1745345474482,5.700758,1699.4,1699.2,5.88494557]
[1745345474680,5.700758,1699.4,1699.2,3.0]
[1745345477186,5.700758,1699.4,1699.2,8.88497518]
[1745345477372,5.700758,1699.4,1699.2,3.0]
[1745345478681,7.0555338,1699.4,1699.0,3.0]
[1745345478984,7.0555338,1699.4,1699.1,5.97632007]
[1745345479361,7.0555338,1699.4,1698.8,12.65370315]
[1745345479565,7.0555338,1699.4,1698.9,3.0]
[1745345479963,12.94006535,1699.4,1699.0,5.97632007]
[1745345480187,7.17889111,1699.3,1698.9,3.0]
[1745345481365,5.700758,1699.2,1698.9,3.0]
[1745345482183,5.700758,1699.2,1698.9,8.88602778]
[1745345482359,5.700758,1699.2,1698.9,3.0]
[1745345482642,5.700758,1699.2,1698.5,5.88744159]
[1745345482643,0.7847,1698.7,1698.2,5.88832146]
[1745345482881,5.700758,1698.7,1698.3,12.45314666]
[1745345483251,5.700758,1698.7,1698.3,6.56515222]
[1745345483452,5.700758,1699.2,1698.8,3.0]
[1745345483651,11.58606208,1699.2,1698.8,3.817]
[1745345483846,13.41149272,1699.2,1698.8,3.0]
[1745345484097,7.52632662,1699.2,1698.8,3.0]
[1745345484453,13.41150995,1699.2,1698.8,3.0]
[1745345484883,7.52632662,1699.2,1698.8,3.0]
[1745345485685,13.41145814,1699.2,1698.8,3.0]
[1745345485883,7.52632662,1699.2,1698.8,3.0]
[1745345486092,13.41158267,1699.2,1698.8,3.0]
[1745345486281,5.88592831,1699.0,1698.6,12.45732007]
[1745345486467,5.700758,1698.9,1698.6,5.664]
[1745345486649,6.451758,1698.9,1698.5,3.0]
[1745345486855,12.33802841,1698.9,1698.5,3.0]
[1745345487251,18.22449005,1698.9,1698.5,3.0]
[1745345487486,14.16047742,1698.9,1698.5,3.0]
[1745345487692,8.27420701,1698.9,1698.5,3.0]
[1745345487887,6.451758,1698.9,1698.5,3.0]
[1745345488197,12.3380653,1698.9,1698.5,3.0]
[1745345488492,5.88651302,1698.8,1698.5,3.0]
[1745345488698,5.88651302,1698.8,1698.4,6.08398442]
[1745345488699,5.700758,1698.7,1698.4,5.97632007]
[1745345489369,5.700758,1698.7,1698.3,5.97632007]
[1745345489552,6.8594851,1698.7,1698.4,3.0]
[1745345489991,5.700758,1698.7,1698.4,8.88778196]
[1745345490297,5.700758,1698.7,1698.5,5.97632007]
[1745345490598,5.700758,1698.7,1698.5,11.9226809]